Cogmind - Beta 15 @@@ ROGUE MODE // 2025.06.20 @ 13:27:40 Player: Singularius Result: Destroyed by G-50 Soldier with Heavy Laser Performance ------------- Evolutions (1) 500 Regions Visited (6) 1200 Robots Destroyed (46) 230 Value Destroyed (1286) 1286 Prototype IDs (11) 220 Alien Tech Used (0) 0 Bonus (616) 616 TOTAL SCORE: 4052 Bonus ------- Follower Combat Kills 36 Met Imprinter 300 Was Imprinted 300 Friendly Fire -20 Cogmind --------- Core Integrity 0/400 Matter 257/300 Energy 278/280 System Corruption 0% Temperature Cool (9) Movement Treading (163) Location -6/Proximity Caves Parts ------- > --- POWER (1) -------- Heavy Ion Engine > --- PROPULSION (3) --- Light Treads Armored Treads Medium Treads > --- UTILITY (3) ------ Improved Heat Sink High-capacity Storage Unit Signal Interpreter > --- WEAPON (2) ------- Advanced Beam Cannon Heavy Assault Rifle > --- INVENTORY (20) --- Improved Ion Engine Light Treads Light Treads Light Treads Light Treads Compact Matter Pod (150) Structural Scanner Advanced Sensor Array Particle Charger Light Armor Plating Particle Gun Mini Grenade Launcher RU-N14's Throwing Claymores (3) CR-A16's Pointy Stick Peak State ------------ > --- POWER ------------ Heavy Ion Engine > --- PROPULSION ------- Light Treads Improved Treads Improved Treads > --- UTILITY ---------- High-capacity Storage Unit Advanced Sensor Array Signal Interpreter > --- WEAPON ----------- Advanced Beam Cannon Advanced Beam Cannon > --- INVENTORY -------- Improved Ion Engine Heavy Ion Engine Light Treads Light Treads Light Treads Light Treads Light Treads Improved Heat Sink Compact Matter Pod Structural Scanner Particle Charger Light Armor Plating Particle Gun Advanced Beam Cannon Heavy Assault Rifle Advanced Assault Cannon Gauss Cannon Mini Grenade Launcher RU-N14's Throwing Claymores CR-A16's Pointy Stick [Rating: 25] Favorites ----------- Power Heavy Ion Engine Engine Heavy Ion Engine Power Core Light Nuclear Core Propulsion Light Treads Treads Light Treads Wheel Compact Wheel Utility Signal Interpreter Device Sensor Array Storage High-capacity Storage Unit Processor Signal Interpreter Weapon Advanced Beam Cannon Energy Gun Particle Gun Energy Cannon Advanced Beam Cannon Ballistic Gun Light Assault Rifle Ballistic Cannon Gauss Cannon Launcher Rocket Launcher Special Weapon RU-N14's Throwing Claymores Slashing Weapon Mining Claw Piercing Weapon CR-A16's Pointy Stick Build | -11 -10 -10 -9 -9 -7 -6 ------- Run | Yrd Mat Min Mat Min Zio Pro Slots Evolved 2 | . . . 2 . . . Power . | . . . . . . . Propulsion 1 | . . . 1 . . . Utility 1 | . . . 1 . . . Weapon . | . . . . . . . Parts Attached 50 | 10 5 6 16 . 2 11 Power 9 | 1 2 2 3 . . 1 Engine 6 | 1 1 . 3 . . 1 Core 3 | . 1 2 . . . . Reactor . | . . . . . . . Propulsion 17 | 4 . 1 7 . . 5 Treads 15 | 2 . 1 7 . . 5 Leg . | . . . . . . . Wheel 2 | 2 . . . . . . Hover . | . . . . . . . Flight . | . . . . . . . Utility 9 | 2 2 . 4 . . 1 Device 5 | 1 . . 3 . . 1 Storage 3 | 1 1 . 1 . . . Processor 1 | . 1 . . . . . Hackware . | . . . . . . . Protection . | . . . . . . . Artifact . | . . . . . . . Weapon 15 | 3 1 3 2 . 2 4 Energy Gun 2 | 1 . 1 . . . . Energy Cannon 3 | . . . 2 . . 1 Ballistic Gun 4 | 2 . 1 . . . 1 Ballistic Cannon 2 | . . . . . . 2 Launcher 1 | . . 1 . . . . Special Weapon 1 | . . . . . 1 . Impact Weapon . | . . . . . . . Slashing Weapon 1 | . 1 . . . . . Piercing Weapon 1 | . . . . . 1 . Special Melee Weapon . | . . . . . . . Unidentified Prototypes 2 | . . . 1 . 1 . Parts Lost 11 | . 2 2 1 . . 6 Power 4 | . 1 1 1 . . 1 Propulsion 2 | . . . . . . 2 Utility . | . . . . . . . Weapon 5 | . 1 1 . . . 3 Highest Loss Streak 6 | . 2 2 1 . . 6 To Critical Strikes . | . . . . . . . Average Backups 16 | 2 8 14 16 20 19 19 Power 1 | . . . . 2 2 1 Propulsion 4 | 1 3 6 5 5 5 4 Utility 3 | . 2 4 3 4 4 5 Weapon 6 | . 1 4 7 9 8 7 Tool/Special . | . . . . . . . Unused Backups 20 | . 3 1 6 . 4 6 Power 2 | . 1 . 1 . . . Propulsion 4 | . 2 . 1 . . 1 Utility 6 | . . 1 1 . . 4 Weapon 8 | . . . 3 . 4 1 Tool/Special . | . . . . . . . Average Slot Usage (%) 99 | . 99 99 99 100 100 93 Engine 8 | . 8 1 8 11 11 11 Core 3 | . 4 12 1 . . . Treads 31 | . 28 28 32 33 33 29 Device 8 | . 9 . 11 11 11 11 Storage 12 | . 14 14 11 11 11 11 Processor 10 | . 4 14 11 11 11 11 Energy Gun 3 | . 9 12 . . . . Energy Cannon 13 | . . . 20 22 21 17 Ballistic Gun 5 | . 18 15 . . . . Peak Build Rating 25 | 7 9 11 20 20 24 25 Average Rating 16 | 5 7 10 17 20 20 22 On Entrance 12 | . 7 8 11 20 20 21 Naked Turns . | . . . . . . . Heaviest Build 57 | 11 28 29 57 57 57 57 Greatest Support 68 | 40 40 40 66 66 66 68 Greatest Overweight (x) . | . . . . . . . Average Overweight (x) . | . . . . . . . Largest Inventory Capacity 20 | 8 15 15 20 20 20 20 Average Capacity 16 | 7 8 15 16 20 20 20 Most Carried 20 | 6 15 15 20 20 20 20 Average Carried 16 | 3 8 14 16 20 19 19 Final Capacity 20 | 8 15 15 20 20 20 20 Final Carried 20 | 6 15 15 20 20 20 14 Class Distribution -------------------- 100% | Mutant Dominant Class ---------------- Mutant | -10/Materials Mutant | -10/Mines Mutant | -9/Materials Mutant | -9/Mines Mutant | -7/Zion Mutant | -6/Proximity Caves Resources | -11 -10 -10 -9 -9 -7 -6 ----------- Run | Yrd Mat Min Mat Min Zio Pro Matter Collected 1284 | 314 269 160 325 . 20 196 Remotely . | . . . . . . . Salvage Created 1732 | 104 358 379 640 39 . 212 Parts 107 | 4 24 28 38 8 . 5 Haulers Intercepted 3 | . 1 . 2 . . . Recyclers Shooed . | . . . . . . . Parts Field Recycled . | . . . . . . . Retrieved Matter . | . . . . . . . Parts Self-Destructed 7 | . . . . . 3 4 Prevented 4 | . . . . . . 4 Kills | -11 -10 -10 -9 -9 -7 -6 ------- Run | Yrd Mat Min Mat Min Zio Pro Combat Hostiles Destroyed 39 | . 9 12 11 3 . 4 Guns 20 | . 9 11 . . . . Cannons 17 | . . . 11 3 . 3 AOE 1 | . . 1 . . . . Classes Destroyed 9 | 2 4 . 2 . . 1 Builder 1 | . 1 . . . . . Tunneler 1 | 1 . . . . . . Hauler 3 | . 1 . 2 . . . Recycler 2 | 1 . 1 . . . . Swarmer 12 | . 3 6 . 3 . . Grunt 21 | . 6 6 6 . . 3 Brawler 1 | . . . 1 . . . Duelist 1 | . . . . . . 1 Sentry 4 | . . . 4 . . . Best Kill Streak 4 | 2 4 3 1 3 . 2 Combat Bots Only 3 | . 3 3 1 3 . 2 Max Kills in Single Turn 2 | 1 2 2 1 1 . 1 Gunslinging 1 | . . 1 . . . . Exploded 1 | . . 1 . . . . Melee . | . . . . . . . Uniques/NPCs Destroyed . | . . . . . . . Combat | -11 -10 -10 -9 -9 -7 -6 -------- Run | Yrd Mat Min Mat Min Zio Pro Hostile Shots Fired 257 | . 58 52 35 7 . 105 Missed 69 | . 18 14 12 3 . 22 Hits 188 | . 40 38 23 4 . 83 Melee 11 | . . . 3 . . 8 Projectile 177 | . 40 38 20 4 . 75 Critical Strikes 9 | . . 1 3 . . 5 Damage Taken 2982 | . 445 524 353 31 . 1629 Core 601 | . 101 93 47 19 . 341 Absorbed by Shields . | . . . . . . . Regen/Repaired (Parts) 174 | . . . . . 174 . Core Remaining (%) 61 | 100 . 22 . . . . Volleys Fired 129 | 7 38 28 29 4 1 22 Largest 2 | 2 2 2 2 2 1 2 Hottest 136 | 40 70 85 136 136 68 136 Shots Fired 248 | 14 76 53 56 8 1 40 Gun 140 | 14 76 49 . . . 1 Cannon 104 | . . . 56 8 1 39 Launcher 4 | . . 4 . . . . Special . | . . . . . . . Kinetic 120 | 14 59 35 . . . 12 Thermal 124 | . 17 14 56 8 1 28 Explosive 4 | . . 4 . . . . Electromagnetic . | . . . . . . . Robot Hit Streak 17 | 9 17 15 10 2 . 14 Robot Miss Streak 3 | 1 2 3 1 2 . 3 Penetration Max . | . . . . . . . Secondary Targets 5 | . 3 2 . . . . Max Gunslinging Chain 1 | . 1 1 . . . . Shots Hit Robots 163 | 10 52 33 39 3 . 26 Core Hits 72 | 4 23 20 14 3 . 8 Critical Kills 1 | . . 1 . . . . Critical Parts Destroyed . | . . . . . . . Critical Strikes 2 | . . 1 . . . 1 Destroy 1 | . . 1 . . . . Blast 1 | . . . . . . 1 Melee Attacks 4 | . 4 . . . . . Impact . | . . . . . . . Slashing 4 | . 4 . . . . . Piercing . | . . . . . . . Sneak Attacks . | . . . . . . . Combat Hostiles . | . . . . . . . Follow-up Attacks . | . . . . . . . Damage Inflicted 2582 | 82 502 509 802 81 . 606 Guns 921 | 82 502 337 . . . . Cannons 1489 | . . . 802 81 . 606 Explosions 172 | . . 172 . . . . Melee . | . . . . . . . Ramming . | . . . . . . . Kinetic 744 | 82 350 175 . . . 137 Thermal 1666 | . 152 162 802 81 . 469 Explosive 172 | . . 172 . . . . Electromagnetic . | . . . . . . . Impact . | . . . . . . . Slashing . | . . . . . . . Piercing . | . . . . . . . Highest Corruption 1 | . 1 1 . . . . Average Corruption 1 | . 1 1 . . . . Corruption Purged . | . . . . . . . Corruption Blocked . | . . . . . . . Effects 14 | . 3 11 . . . . Message Errors 5 | . 2 3 . . . . Matter Fused 2 | . . 2 . . . . Heat Flow Errors 2 | . . 2 . . . . Energy Discharges 4 | . 1 3 . . . . Misfires 1 | . . 1 . . . . Overload Shots . | . . . . . . . Overflow Damage 6 | . . 6 . . . . Projectiles . | . . . . . . . Explosions 6 | . . 6 . . . . Melee . | . . . . . . . Knockbacks 1 | . . . . . . 1 Impact . | . . . . . . . Kinetic 1 | . . . . . . 1 Secondary . | . . . . . . . Self-Inflicted Damage 35 | . . 35 . . . . Shots 2 | . . 2 . . . . Rammed . | . . . . . . . Targets Rammed . | . . . . . . . Kicked . | . . . . . . . Crushed . | . . . . . . . Highest Temperature 351 | . 221 310 318 276 24 351 Average Temperature 91 | . 52 82 68 136 13 165 Received Heat Transfer 1071 | . 222 255 138 . . 456 Effects 9 | . . . 1 3 . 5 Shutdowns 1 | . . . 1 . . . Energy Bleed 1 | . . . . . . 1 Interference 7 | . . . . 3 . 4 Siege Activations . | . . . . . . . Martial Activations . | . . . . . . . Shielding Activations . | . . . . . . . Robots Disrupted . | . . . . . . . Combat Hostiles . | . . . . . . . Robots Corrupted . | . . . . . . . Combat Hostiles . | . . . . . . . Parts Fried . | . . . . . . . Impact Corruptions . | . . . . . . . Robots Melted 1 | . . . . . . 1 Combat Hostiles 1 | . . . . . . 1 Parts Melted 7 | . . . 3 2 . 2 Heat Transferred 3293 | . 444 407 1443 148 . 851 Parts Sabotaged . | . . . . . . . Parts Stolen . | . . . . . . . Parts Stripped . | . . . . . . . Power Chain Reactions . | . . . . . . . Alert | -11 -10 -10 -9 -9 -7 -6 ------- Run | Yrd Mat Min Mat Min Zio Pro Maximum Alert Level . | . . . . . . . Low Security (%) 100 | 100 100 100 100 100 . . Level 1 . | . . . . . . . Level 2 . | . . . . . . . Level 3 . | . . . . . . . Level 4 . | . . . . . . . Level 5 . | . . . . . . . High Security . | . . . . . . . Max Security . | . . . . . . . Peak Influence 128 | 10 109 128 93 70 . . Initial 19 | . . 19 16 . . . Average 33 | . 26 48 32 19 . . Influence Increases 1335 | 10 270 408 379 70 . 198 Destroy 0b10 Robot/C 800 | . 180 240 220 60 . 100 Destroy 0b10 Robot/NC 35 | 10 10 5 10 . . . Destroy Leader 176 | . 32 50 64 10 . 20 Allied During Kill 3 | . . . . . . 3 Successful Hack 54 | . 32 . 22 . . . Disable Machine 45 | . 15 15 15 . . . Destroy Structure 42 | . 1 38 3 . . . Lose Combat Pursuer 180 | . . 60 45 . . 75 Influence Decreases 1327 | 10 220 416 421 70 . 190 Entered New Map 57 | . . 31 26 . . . Time Decay 1170 | 10 210 385 395 70 . 100 Lost Part 70 | . 10 . . . . 60 Lost Ally 30 | . . . . . . 30 Squads Dispatched . | . . . . . . . Investigation . | . . . . . . . Extermination . | . . . . . . . Reinforcement . | . . . . . . . Assault . | . . . . . . . Garrison . | . . . . . . . Intercept . | . . . . . . . Searches Triggered . | . . . . . . . Construction Impeded . | . . . . . . . Haulers Reinforced . | . . . . . . . Active Scanning Responses . | . . . . . . . Cargo Convoy Interrupts . | . . . . . . . Stealth | -11 -10 -10 -9 -9 -7 -6 --------- Run | Yrd Mat Min Mat Min Zio Pro Distress Signals 3 | . 1 . 2 . . . Communications Jammed . | . . . . . . . Distress Signals . | . . . . . . . Times Spotted 70 | . 13 16 27 2 . 12 Peak Tracking Total 7 | . 3 3 7 2 . 4 Tactical Retreats 7 | . . 2 2 . . 3 Traps | -11 -10 -10 -9 -9 -7 -6 ------- Run | Yrd Mat Min Mat Min Zio Pro Traps Triggered 1 | . 1 . . . . . Indirectly . | . . . . . . . Trap Hack Attempts . | . . . . . . . Triggered . | . . . . . . . Disarmed . | . . . . . . . Reprogrammed . | . . . . . . . Reused . | . . . . . . . Traps Extracted . | . . . . . . . Installed . | . . . . . . . Triggered . | . . . . . . . Machines | -11 -10 -10 -9 -9 -7 -6 ---------- Run | Yrd Mat Min Mat Min Zio Pro Machines Disabled 3 | . 1 1 1 . . . Max in Single Turn 1 | . 1 1 1 . . . Machines Repaired . | . . . . . . . Machines Dismantled . | . . . . . . . Machines Sabotaged . | . . . . . . . Overloaded Fab Kills . | . . . . . . . Hacking | -11 -10 -10 -9 -9 -7 -6 --------- Run | Yrd Mat Min Mat Min Zio Pro Machines Accessed 14 | . 8 . 6 . . . Terminals 12 | . 7 . 5 . . . Fabricators . | . . . . . . . Repair Stations . | . . . . . . . Recycling Units 2 | . 1 . 1 . . . Scanalyzers . | . . . . . . . Garrison Access . | . . . . . . . Total Hacks 39 | . 22 . 17 . . . Successful 20 | . 9 . 11 . . . Failed 18 | . 12 . 6 . . . Catastrophic 4 | . 4 . . . . . Database Lockouts 1 | . 1 . . . . . Manual 26 | . 15 . 10 . 1 . Terminals 37 | . 21 . 16 . . . Fabricators . | . . . . . . . Repair Stations . | . . . . . . . Recycling Units 2 | . 1 . 1 . . . Scanalyzers . | . . . . . . . Garrison Access . | . . . . . . . Terminal Hacks 14 | . 6 . 8 . . . Record 1 | . 1 . . . . . Part Schematic 1 | . 1 . . . . . Prototype ID Bank 5 | . 1 . 4 . . . Branch Access Points 2 | . 1 . 1 . . . Locate Traps 2 | . 1 . 1 . . . Hauler Manifests 1 | . . . 1 . . . Registered Components 1 | . 1 . . . . . Zone Layout 1 | . . . 1 . . . Fabricator Hacks . | . . . . . . . Repair Station Hacks . | . . . . . . . Recycling Unit Hacks 2 | . 1 . 1 . . . Retrieve Components 2 | . 1 . 1 . . . Scanalyzer . | . . . . . . . Garrison Access Hacks . | . . . . . . . Unauthorized Hacks 4 | . 2 . 2 . . . Terminals 4 | . 2 . 2 . . . Botnet 4 | . 2 . 2 . . . Fabricators . | . . . . . . . Repair Stations . | . . . . . . . Recycling Units . | . . . . . . . Scanalyzers . | . . . . . . . Garrison Access . | . . . . . . . Data Cores Recovered . | . . . . . . . Used . | . . . . . . . Hacking Detections 11 | . 7 . 4 . . . Full Trace Events . | . . . . . . . Feedback Events . | . . . . . . . Feedback Blocked . | . . . . . . . Robot Schematics Acquired 4 | . . . . . 4 . Robots Built . | . . . . . . . Authchips . | . . . . . . . Time . | . . . . . . . Total Robot Build Rating . | . . . . . . . Part Schematics Acquired 15 | . 1 . . . 14 . Parts Built . | . . . . . . . Authchips . | . . . . . . . Time . | . . . . . . . Total Part Build Rating . | . . . . . . . Parts Repaired . | . . . . . . . Time . | . . . . . . . Parts Recycled . | . . . . . . . Recycled Matter . | . . . . . . . Retrieved Matter . | . . . . . . . Retrieved Components 9 | . . . 9 . . . Parts Scanalyzed . | . . . . . . . Part Schematics Acquired . | . . . . . . . Parts Damaged . | . . . . . . . Bothacking | -11 -10 -10 -9 -9 -7 -6 ------------ Run | Yrd Mat Min Mat Min Zio Pro Used RIF Installer . | . . . . . . . Robots Hacked . | . . . . . . . Non-combat . | . . . . . . . Combat . | . . . . . . . Robot Hacks Applied . | . . . . . . . Relay Couplers Released . | . . . . . . . Fabnet Peak Effective % . | . . . . . . . Robots Rewired . | . . . . . . . Allies Hacked . | . . . . . . . Hacks Repelled . | . . . . . . . Allies | -11 -10 -10 -9 -9 -7 -6 -------- Run | Yrd Mat Min Mat Min Zio Pro Total Allies 4 | . . . . . 4 . Largest Group 4 | . . . . . 4 4 Highest-Rated Group 154 | . . . . . 154 154 Highest-Rated Ally 40 | . . . . . 40 40 Total Orders . | . . . . . . . Ally Attacks 14 | . . . . . . 14 Total Damage 214 | . . . . . . 214 Kills 1 | . . . . . . 1 Allies Corrupted 1 | . . . . . . 1 Allies Melted . | . . . . . . . Intel | -11 -10 -10 -9 -9 -7 -6 ------- Run | Yrd Mat Min Mat Min Zio Pro Active Infowar (turns) 3438 | 18 461 . 781 260 1732 186 Sensors 2959 | . . . 781 260 1732 186 Seismic 479 | 18 461 . . . . . Robot Analysis Total . | . . . . . . . Derelict Logs Recovered 6 | . . 3 . 2 1 . Drone Launches . | . . . . . . . Drone Recoveries . | . . . . . . . Exploration | -11 -10 -10 -9 -9 -7 -6 ------------- Run | Yrd Mat Min Mat Min Zio Pro Turns Passed 5388 | 119 724 1037 1192 270 1744 302 Spaces Moved 2979 | 53 344 582 631 162 1072 135 Core 4 | 4 . . . . . . Treads 2973 | 47 344 582 631 162 1072 135 Legs . | . . . . . . . Wheels 2 | 2 . . . . . . Hover . | . . . . . . . Flight . | . . . . . . . Fastest Speed 50 | 50 160 160 160 160 160 160 Average Speed 159 | 149 160 160 160 160 160 160 Slowest Speed 163 | 160 160 160 160 160 160 163 Overloaded Moves . | . . . . . . . Propulsion Burnouts . | . . . . . . . Robots Hopped . | . . . . . . . Potential Cave-ins . | . . . . . . . Cave-ins Triggered . | . . . . . . . Exploration Rate (%) 52 | 6 54 98 58 49 90 13 Regions Visited 6 Branch Regions 4 Pre-discovered Areas 3 | . . 2 . . 1 . Known Exits Taken 5 | . 1 1 1 1 1 . Unknown Exits Taken 1 | 1 . . . . . . Scrap Searched 6 | . . 1 . . 4 1 Spaces Dug 1 | . 1 . . . . . Terrain Destroyed 54 | . 1 47 . . . 6 Melee 1 | . 1 . . . . . Projectile 6 | . . . . . . 6 AOE 47 | . . 47 . . . . Terrain Rammed . | . . . . . . . Walls Destroyed . | . . . . . . . Machines Disabled . | . . . . . . . Actions | -11 -10 -10 -9 -9 -7 -6 --------- Run | Yrd Mat Min Mat Min Zio Pro Total 3376 | 78 447 643 764 165 1100 179 Wait 119 | 1 31 19 51 . 10 7 Move 2973 | 52 343 581 630 161 1071 135 Hop . | . . . . . . . Pick Up 49 | 6 16 4 17 . 6 . Fast Attach 14 | 9 2 1 2 . . . Attach 12 | . 1 1 2 . . 8 Detach . | . . . . . . . Swap 36 | 1 4 5 14 . 6 6 Drop 40 | 2 8 4 19 . 6 1 Fire 129 | 7 38 28 29 4 1 22 Melee 4 | . 4 . . . . . Ram . | . . . . . . . Kick . | . . . . . . . Crush . | . . . . . . . Escape Stasis . | . . . . . . . Rewire . | . . . . . . . Trap . | . . . . . . . Miscellaneous . | . . . . . . . Route ------- -11/Scrapyard -10/Materials -10/Mines (discovered 3 exits: *Mat x2 / *Sub) -9/Materials (discovered 3 exits: *Mat / *Min x2) -9/Mines (discovered 2 exits: *Mat / *Zio) -7/Zion -6/Proximity Caves History --------- Turn | Location | Event 10 | -11/Scrapyard | Discovered new exit (range 15) 120 | -11/Scrapyard | Entered Materials 280 | -10/Materials | Discovered new exit (range 15) 307 | -10/Materials | Build established: Mutant 644 | -10/Materials | Central database locked down 718 | -10/Materials | Identified exit to Mines 844 | -10/Materials | Entered Mines 863 | -10/Mines | Received a Rocket Launcher from a helpful Derelict 925 | -10/Mines | Core integrity fell below 50% 1037 | -10/Mines | Learned Materials security intel 1091 | -10/Mines | Found a Scrap Suit stashed away for nefarious purposes 1139 | -10/Mines | Discovered new exit (range 7) 1141 | -10/Mines | Identified exit to Subcaves 1142 | -10/Mines | Learned location of Storage (-7) 1149 | -10/Mines | Identified exit to Materials 1497 | -10/Mines | Learned location of Recycling (-7) 1758 | -10/Mines | Discovered exit to Materials (range 8) 1881 | -10/Mines | Entered Materials 1881 | -9/Materials | Evolved 2 slots: Propulsion x1, Utility x1 2095 | -9/Materials | Discovered new exit (range 14) 2327 | -9/Materials | Discovered new exit (range 6) 2444 | -9/Materials | Identified exit to Mines 2929 | -9/Materials | Discovered new exit (range 15) 3073 | -9/Materials | Entered Mines 3095 | -9/Mines | Learned location of 1 exit from Materials 3097 | -9/Mines | Met a Derelict bent on vengeance 3165 | -9/Mines | Learned 4 Materials zone layouts 3209 | -9/Mines | Discovered new exit (range 7) 3218 | -9/Mines | Identified exit to Materials 3229 | -9/Mines | A Derelict revealed a hidden shortcut to a safe place 3341 | -9/Mines | Identified exit to Zion 3343 | -9/Mines | Entered Zion 3443 | -7/Zion | Received a hallucinogenic algorithm 3443 | -7/Zion | Ran a hallucination algorithm 3521 | -7/Zion | Discovered new exit (range 11) 3575 | -7/Zion | Visited the Megawrench Repair Shop 3726 | -7/Zion | Given the Hacking Drone Bay 3907 | -7/Zion | Found Prototype Special Weapon 3908 | -7/Zion | Identified RU-N14's Throwing Claymores 4049 | -7/Zion | Learned Factory terminal intel 4081 | -7/Zion | Learned location of Warlord (-4) 4465 | -7/Zion | Found CR-A16's Pointy Stick 4724 | -7/Zion | Met Imprinter 4748 | -7/Zion | Imprinted 4751 | -7/Zion | Declared Zion's savior 5021 | -7/Zion | Megawrench repaired 7 parts 5081 | -7/Zion | Identified exit to Proximity Caves 5087 | -7/Zion | Entered Proximity Caves 5087 | -6/Proximity Caves | Accompanied by 4 allies 5123 | -6/Proximity Caves | Spotted B-75 Beast 5226 | -6/Proximity Caves | Lost 4 allies 5318 | -6/Proximity Caves | Core integrity fell below 50% 5341 | -6/Proximity Caves | Core integrity fell below 20% 5381 | -6/Proximity Caves | Lost 6 parts (1p2n3w) 5389 | -6/Proximity Caves | Destroyed by G-50 Soldier with Heavy Laser Last Messages --------------- 05319_ Adv. Beam Cannon severed. 05322_ Slug penetrates L-41 Fighter. 05322_ L-41 Fighter destroyed. 05324_ Hvy. Ion Engine destroyed. 05326_ Overheating: System interference. 05326_ Signal Interpreter temporarily disabled. 05326_ G-50 Soldier knocked back. 05332_ G-50 Soldier suffers critical hit (Blast). 05332_ G-50 Soldier destroyed. 05334_ Carbon-fiber Leg fries itself beyond repair. 05336_ Adv. Assault Cannon destroyed. 05342_ Carbon-fiber Leg fries itself beyond repair. 05343_ Acquired 49 matter. 05348_ Acquired 75 matter. 05349_ Acquired 2 matter. 05350_ Gauss Cannon destroyed. Map ----- +----------------------------------------------------+ | ?????????????????????????????????????????????????? | | ?????????????????????????????????????????????????? | | ?????????????????????????????????????????????????? | | ?????????????????????????????????????????????????? | | ?????????????????????????????????????????????????? | | ?????????????????????????????????????????????????? | | ?????????????????????????????????????????????????? | | ?????????????????????????????????????????????????? | | ?????????????????????????????????????????????????? | | ?????????????????##??????????????????????????????? | | ???????????###??# #??????????????????????????????? | | ###???????## ### #????????######?????????????????? | | ##????### # #"#????????## #?????????????????? | | #???## ##??####### ##????????????????? | | #???# * %####" #####????????????? | | #???##= * ![% "##" ! #????????????? | | #####"%=%!% * ### #????????????? | | %! ""! ! """ ### # ???????????? | | # #####/*"""" ### "" "" ??????????? | | #######" """###?# #####"; ??????????? | | ?????#" % ##???## ##???#; ### #??????????? | | ?????#=]% % "##### ####;; #?? ##??????????? | | ????" % % ### "######?? #???????????? | | ?? ##?# """g ##??????? #???????????? | | ? ##?# """""" ##???????? #???????????? | | #####??# """ """ @#????????? #???????????? | | ##??????# """ #????????? #???????????? | | #????????# """ """ #????????? ???????????? | | ?????????# """""" #?????????? ???????????? | | ????????? ?? """ #?????????? ???????????? | | ## ????????# ?? ?????????? ???????????? | | ?# ????????????? ?????????? ???????????? | | ?## ????????????????# ??????????????????????? | | ??##????????????????# ## ?????????????????????? | | ????????????????????# ????????????????????????? | | ????????????????????# ????????????????????????? | | ????????????????????# #????????????????????????? | | ????????????????????? #?????????????????????????? | | ????????????????????# ??????????????????????????? | | ????????????????????? ??????????????????????????? | | ?????????????????????????????????????????????????? | | ?????????????????????????????????????????????????? | | ?????????????????????????????????????????????????? | | ?????????????????????????????????????????????????? | | ?????????????????????????????????????????????????? | | ?????????????????????????????????????????????????? | | ?????????????????????????????????????????????????? | | ?????????????????????????????????????????????????? | | ?????????????????????????????????????????????????? | | ?????????????????????????????????????????????????? | +----------------------------------------------------+ Best States ------------- Heat Dissipation 42 Energy Generation 14 Energy Capacity 280 Matter Stores 300 Matter Capacity 300 Sight Range 16 Robot Scan Range 16 Terrain Scan Density 10 Evasion (%) 40 Recoil Reduction 3 Item Schematics ----------------- Hcp. Storage Unit | -10/Materials | Hacked Imp. Trap Scanner | -7/Zion | Archive Hvy. Laser | -7/Zion | Archive Dynamic Insulation System | -7/Zion | Archive Hvy. Plasma Cannon | -7/Zion | Archive Enh. Gauss Cannon | -7/Zion | Archive Med. Treads | -7/Zion | Archive Imp. Actuator Array | -7/Zion | Archive Imp. Shield Generator | -7/Zion | Archive Lrn. Missile Launcher | -7/Zion | Archive Gauss Cannon | -7/Zion | Archive Lgt. Angular Momentum Engine | -7/Zion | Archive Xenon Bombardment Thruster | -7/Zion | Archive Imp. EM Pulse Cannon | -7/Zion | Archive Adv. Shield Generator | -7/Zion | Archive Robot Schematics ------------------ P-60 Hacker | -7/Zion | Archive S-27 Virus | -7/Zion | Archive G-47 Trooper | -7/Zion | Archive L-61 Swordsman | -7/Zion | Archive Fabricated ------------ Nothing Repaired ---------- Nothing Alien Tech Used ----------------- None Achievements -------------- None Challenges ------------ None Game ------ Seed ChainFactoryMatterbank Manual? 0 Play Time 00:56:34 Cumulative 78.5 hours Start 2025.06.20 @ 12:06:01 End 2025.06.20 @ 13:27:40 Sessions 1 Manual Loads 0 Difficulty Rogue Special Mode None Game No. 54 Rogue 54 Adventurer 0 Explorer 0 Win Type - Total 0 Types 0/0/0/0/0/0/0/0/0/0 Lore% 26 Gallery% 36 Achievement% 31 Wizard Run 0 Options --------- Layout 1 ASCII 0 Keyboard 0 Movement Numpad Keybinds 0 Fullscreen 1 Font 24/Smallcaps Map View 50x35 Zoom Use 0% Tactical HUD 1 Map Filters NONE Filters NONE Steam 1 RUN: bda7a829-479e-4051-9b33-b95ad9023340